[Event "Titled Tuesday Blitz December 20 Early 2022"]
[White "Kopylov_Alex"]
[Black "emeli_chess"]
[WhiteElo "2790"]
[BlackElo "2405"]
[Result "1-0"]
[Round "01"]
[TimeControl "180+2"]
[Date "2022.12.20"]
[WhiteClock "0:01:28"]
[BlackClock "0:00:19"]

1. e4 {[%clk 0:02:59]}  e5 {[%clk 0:02:58]} 2. Nf3 {[%clk 0:02:59]}  Nc6 {[%clk 0:02:59]} 3. Nc3 {[%clk 0:03:00]}  Nf6 {[%clk 0:02:58]} 4. h3 {[%clk 0:03:00]}  d5 {[%clk 0:02:57]} 5. exd5 {[%clk 0:03:01]}  Nxd5 {[%clk 0:02:57]} 6. Bb5 {[%clk 0:03:02]}  Nxc3 {[%clk 0:02:51]} 7. bxc3 {[%clk 0:03:03]}  Bd6 {[%clk 0:02:50]} 8. O-O {[%clk 0:03:03]}  O-O {[%clk 0:02:50]} 9. Re1 {[%clk 0:03:03]}  Re8 {[%clk 0:02:33]} 10. d4 {[%clk 0:03:03]}  exd4 {[%clk 0:02:30]} 11. Rxe8+ {[%clk 0:03:04]}  Qxe8 {[%clk 0:02:30]} 12. cxd4 {[%clk 0:03:04]}  a6 {[%clk 0:02:23]} 13. Bd3 {[%clk 0:02:57]}  Nxd4 {[%clk 0:02:09]} 14. Nxd4 {[%clk 0:02:50]}  Qe5 {[%clk 0:02:08]} 15. Be3 {[%clk 0:02:45]}  Qh2+ {[%clk 0:02:04]} 16. Kf1 {[%clk 0:02:44]}  Qh1+ {[%clk 0:02:02]} 17. Ke2 {[%clk 0:02:44]}  Qxg2 {[%clk 0:02:02]} 18. Qh1 {[%clk 0:02:40]}  Qxh3 {[%clk 0:02:00]} 19. Qxh3 {[%clk 0:02:39]}  Bxh3 {[%clk 0:02:00]} 20. Bxh7+ {[%clk 0:02:34]}  Kf8 {[%clk 0:01:57]} 21. Bf5 {[%clk 0:02:34]}  Bxf5 {[%clk 0:01:50]} 22. Nxf5 {[%clk 0:02:33]}  Be5 {[%clk 0:01:51]} 23. Rh1 {[%clk 0:02:27]}  g6 {[%clk 0:01:47]} 24. Ng3 {[%clk 0:01:56]}  b6 {[%clk 0:01:36]} 25. Kf3 {[%clk 0:01:57]}  Rd8 {[%clk 0:01:31]} 26. Ne4 {[%clk 0:01:56]}  f5 {[%clk 0:01:20]} 27. Ng5 {[%clk 0:01:56]}  Rd5 {[%clk 0:01:07]} 28. Rh7 {[%clk 0:01:53]}  Ra5 {[%clk 0:01:05]} 29. Ne6+ {[%clk 0:01:53]}  Kg8 {[%clk 0:01:05]} 30. Rd7 {[%clk 0:01:47]}  Rxa2 {[%clk 0:01:04]} 31. Nxc7 {[%clk 0:01:47]}  Rxc2 {[%clk 0:01:03]} 32. Nxa6 {[%clk 0:01:47]}  b5 {[%clk 0:01:00]} 33. Rd5 {[%clk 0:01:46]}  Bf6 {[%clk 0:00:47]} 34. Rxb5 {[%clk 0:01:46]}  Kf7 {[%clk 0:00:48]} 35. Rb7+ {[%clk 0:01:46]}  Ke6 {[%clk 0:00:44]} 36. Rb6+ {[%clk 0:01:45]}  Kf7 {[%clk 0:00:43]} 37. Rb7+ {[%clk 0:01:43]}  Ke6 {[%clk 0:00:42]} 38. Nc5+ {[%clk 0:01:43]}  Kd5 {[%clk 0:00:40]} 39. Rb6 {[%clk 0:01:39]}  Bd4 {[%clk 0:00:34]} 40. Bxd4 {[%clk 0:01:35]}  Kxd4 {[%clk 0:00:34]} 41. Ne6+ {[%clk 0:01:32]}  Ke5 {[%clk 0:00:34]} 42. Ng5 {[%clk 0:01:29]}  Rc3+ {[%clk 0:00:27]} 43. Kg2 {[%clk 0:01:29]}  f4 {[%clk 0:00:21]} 44. Rxg6 {[%clk 0:01:29]}  Kf5 {[%clk 0:00:21]} 45. Rg8 {[%clk 0:01:29]}  Rc6 {[%clk 0:00:19]} 46. Nf3 {[%clk 0:01:28]} 1-0


[Site "https://www.chess.com"]

[Event "Titled Tuesday Blitz December 20 Early 2022"]
[White "Kukku, Ramesh"]
[Black "Orange_Ghost"]
[WhiteFideId "25695606"]
[WhiteElo "1575"]
[BlackElo "2740"]
[Result "0-1"]
[Round "01"]
[TimeControl "180+2"]
[Date "2022.12.20"]
[WhiteClock "0:00:50"]
[BlackClock "0:01:10"]

1. Nc3 {[%clk 0:02:59]}  d5 {[%clk 0:02:59]} 2. f4 {[%clk 0:02:59]}  d4 {[%clk 0:02:56]} 3. Ne4 {[%clk 0:02:58]}  Bf5 {[%clk 0:02:51]} 4. d3 {[%clk 0:02:57]}  Nf6 {[%clk 0:02:46]} 5. Nxf6+ {[%clk 0:02:57]}  exf6 {[%clk 0:02:47]} 6. e4 {[%clk 0:02:57]}  dxe3 {[%clk 0:02:43]} 7. Bxe3 {[%clk 0:02:56]}  Nc6 {[%clk 0:02:42]} 8. Nf3 {[%clk 0:02:55]}  Bd6 {[%clk 0:02:41]} 9. Be2 {[%clk 0:02:49]}  Qe7 {[%clk 0:02:39]} 10. Qd2 {[%clk 0:02:38]}  O-O-O {[%clk 0:02:39]} 11. Kf2 {[%clk 0:02:22]}  Rhe8 {[%clk 0:02:33]} 12. Rhe1 {[%clk 0:02:18]}  Bc5 {[%clk 0:02:08]} 13. Bxc5 {[%clk 0:02:14]}  Qxc5+ {[%clk 0:02:09]} 14. Kf1 {[%clk 0:02:13]}  Nb4 {[%clk 0:02:06]} 15. Rac1 {[%clk 0:02:04]}  Nd5 {[%clk 0:01:59]} 16. d4 {[%clk 0:02:00]}  Qb6 {[%clk 0:01:57]} 17. Bd3 {[%clk 0:01:48]}  Bxd3+ {[%clk 0:01:42]} 18. cxd3 {[%clk 0:01:47]}  Qa6 {[%clk 0:01:32]} 19. b3 {[%clk 0:01:37]}  Qd6 {[%clk 0:01:24]} 20. g3 {[%clk 0:01:25]}  Qd7 {[%clk 0:01:24]} 21. Kg2 {[%clk 0:01:20]}  Qg4 {[%clk 0:01:20]} 22. h3 {[%clk 0:01:14]}  Qf5 {[%clk 0:01:17]} 23. Rxe8 {[%clk 0:01:06]}  Rxe8 {[%clk 0:01:18]} 24. Re1 {[%clk 0:01:07]}  Rxe1 {[%clk 0:01:15]} 25. Qxe1 {[%clk 0:01:07]}  Kd7 {[%clk 0:01:14]} 26. Qe4 {[%clk 0:01:05]}  Qxe4 {[%clk 0:01:13]} 27. dxe4 {[%clk 0:01:06]}  Nc3 {[%clk 0:01:14]} 28. e5 {[%clk 0:01:00]}  Nxa2 {[%clk 0:01:13]} 29. exf6 {[%clk 0:01:00]}  gxf6 {[%clk 0:01:14]} 30. Nh4 {[%clk 0:00:57]}  Nc1 {[%clk 0:01:14]} 31. b4 {[%clk 0:00:55]}  Na2 {[%clk 0:01:10]} 32. Nf5 {[%clk 0:00:52]}  Nxb4 {[%clk 0:01:10]} 33. Kf3 {[%clk 0:00:53]}  a5 {[%clk 0:01:10]} 34. Ke4 {[%clk 0:00:50]}  a4 {[%clk 0:01:10]} 35. Ne3 {[%clk 0:00:50]}  a3 {[%clk 0:01:10]} 0-1


[Site "https://www.chess.com"]

[Event "Titled Tuesday Blitz December 20 Early 2022"]
[White "MatthewG-p4p"]
[Black "Rosenberg, Sergei G"]
[BlackFideId "4102444"]
[WhiteElo "2825"]
[BlackElo "2418"]
[Result "1/2-1/2"]
[Round "01"]
[TimeControl "180+2"]
[Date "2022.12.20"]
[WhiteClock "0:00:19"]
[BlackClock "0:00:20"]

1. e4 {[%clk 0:02:51]}  e5 {[%clk 0:02:59]} 2. Nf3 {[%clk 0:02:51]}  Nc6 {[%clk 0:03:00]} 3. d4 {[%clk 0:02:51]}  exd4 {[%clk 0:03:00]} 4. Nxd4 {[%clk 0:02:51]}  Nf6 {[%clk 0:03:00]} 5. Nxc6 {[%clk 0:01:41]}  bxc6 {[%clk 0:03:01]} 6. e5 {[%clk 0:01:40]}  Qe7 {[%clk 0:03:01]} 7. Qe2 {[%clk 0:01:40]}  Nd5 {[%clk 0:03:01]} 8. h4 {[%clk 0:01:41]}  f6 {[%clk 0:03:00]} 9. c4 {[%clk 0:01:40]}  Ba6 {[%clk 0:02:56]} 10. Rh3 {[%clk 0:01:30]}  Nb6 {[%clk 0:02:39]} 11. exf6 {[%clk 0:01:28]}  Qxe2+ {[%clk 0:02:36]} 12. Bxe2 {[%clk 0:01:29]}  gxf6 {[%clk 0:02:01]} 13. b3 {[%clk 0:01:14]}  O-O-O {[%clk 0:01:53]} 14. Bb2 {[%clk 0:00:57]}  Re8 {[%clk 0:01:43]} 15. Bxf6 {[%clk 0:00:47]}  Rg8 {[%clk 0:01:43]} 16. Kf1 {[%clk 0:00:47]}  d5 {[%clk 0:01:34]} 17. Nd2 {[%clk 0:00:35]}  Bc5 {[%clk 0:01:26]} 18. Rc1 {[%clk 0:00:22]}  Rxg2 {[%clk 0:01:14]} 19. Kxg2 {[%clk 0:00:17]}  Rxe2 {[%clk 0:01:14]} 20. Bg5 {[%clk 0:00:16]}  Rxf2+ {[%clk 0:01:13]} 21. Kh1 {[%clk 0:00:17]}  Bb4 {[%clk 0:00:51]} 22. Rh2 {[%clk 0:00:12]}  Rxh2+ {[%clk 0:00:34]} 23. Kxh2 {[%clk 0:00:13]}  Bxd2 {[%clk 0:00:29]} 24. Bxd2 {[%clk 0:00:11]}  dxc4 {[%clk 0:00:30]} 25. bxc4 {[%clk 0:00:12]}  Nxc4 {[%clk 0:00:29]} 26. Bf4 {[%clk 0:00:11]}  Bb5 {[%clk 0:00:29]} 27. Rc2 {[%clk 0:00:10]}  Kd7 {[%clk 0:00:26]} 28. a4 {[%clk 0:00:10]}  Ba6 {[%clk 0:00:26]} 29. h5 {[%clk 0:00:10]}  Nd6 {[%clk 0:00:25]} 30. Kg3 {[%clk 0:00:10]}  Bd3 {[%clk 0:00:25]} 31. Rd2 {[%clk 0:00:10]}  Ne4+ {[%clk 0:00:25]} 32. Kf3 {[%clk 0:00:10]}  Nxd2+ {[%clk 0:00:26]} 33. Bxd2 {[%clk 0:00:11]}  a5 {[%clk 0:00:21]} 34. Bxa5 {[%clk 0:00:10]}  Bc2 {[%clk 0:00:22]} 35. Bc3 {[%clk 0:00:09]}  Bxa4 {[%clk 0:00:19]} 36. h6 {[%clk 0:00:09]}  Bc2 {[%clk 0:00:19]} 37. Bg7 {[%clk 0:00:10]}  Bg6 {[%clk 0:00:20]} 38. Ke3 {[%clk 0:00:10]}  Kd6 {[%clk 0:00:19]} 39. Kd4 {[%clk 0:00:11]}  c5+ {[%clk 0:00:20]} 40. Kc3 {[%clk 0:00:12]}  Kd5 {[%clk 0:00:20]} 41. Bf8 {[%clk 0:00:12]}  c4 {[%clk 0:00:19]} 42. Bg7 {[%clk 0:00:13]}  c6 {[%clk 0:00:18]} 43. Bf8 {[%clk 0:00:14]}  Bd3 {[%clk 0:00:18]} 44. Bg7 {[%clk 0:00:14]}  Ke6 {[%clk 0:00:18]} 45. Bf8 {[%clk 0:00:15]}  Kf7 {[%clk 0:00:19]} 46. Bg7 {[%clk 0:00:16]}  Be2 {[%clk 0:00:18]} 47. Kd2 {[%clk 0:00:16]}  Bd3 {[%clk 0:00:19]} 48. Kc3 {[%clk 0:00:17]}  Kg6 {[%clk 0:00:19]} 49. Kd2 {[%clk 0:00:18]}  Kf7 {[%clk 0:00:20]} 50. Kc3 {[%clk 0:00:19]} 1/2-1/2


[Site "https://www.chess.com"]

[Event "Titled Tuesday Blitz December 20 Early 2022"]
[White "Mestnikov, Aisen"]
[Black "ChessicallyInclined"]
[WhiteFideId "34130117"]
[WhiteElo "2043"]
[BlackElo "2693"]
[Result "1-0"]
[Round "01"]
[TimeControl "180+2"]
[Date "2022.12.20"]
[WhiteClock "0:00:39"]
[BlackClock "0:00:11"]

1. d4 {[%clk 0:02:59]}  Nf6 {[%clk 0:02:59]} 2. c4 {[%clk 0:02:59]}  b6 {[%clk 0:03:00]} 3. Nf3 {[%clk 0:02:58]}  Bb7 {[%clk 0:02:59]} 4. g3 {[%clk 0:02:58]}  g6 {[%clk 0:02:59]} 5. Bg2 {[%clk 0:02:58]}  Bg7 {[%clk 0:02:59]} 6. O-O {[%clk 0:02:58]}  O-O {[%clk 0:03:00]} 7. Nc3 {[%clk 0:02:59]}  Ne4 {[%clk 0:03:00]} 8. Qc2 {[%clk 0:02:56]}  Nxc3 {[%clk 0:02:58]} 9. Qxc3 {[%clk 0:02:57]}  c5 {[%clk 0:02:59]} 10. e3 {[%clk 0:02:50]}  Nc6 {[%clk 0:02:43]} 11. Rd1 {[%clk 0:02:47]}  Rc8 {[%clk 0:02:42]} 12. Qd3 {[%clk 0:02:39]}  cxd4 {[%clk 0:02:36]} 13. exd4 {[%clk 0:02:38]}  d5 {[%clk 0:02:37]} 14. cxd5 {[%clk 0:02:37]}  Nb4 {[%clk 0:02:36]} 15. Qb5 {[%clk 0:02:25]}  Nc2 {[%clk 0:02:19]} 16. Rb1 {[%clk 0:02:25]}  Qxd5 {[%clk 0:02:19]} 17. Qxd5 {[%clk 0:02:22]}  Bxd5 {[%clk 0:02:20]} 18. b3 {[%clk 0:02:17]}  Bxf3 {[%clk 0:02:16]} 19. Bxf3 {[%clk 0:02:17]}  Nxd4 {[%clk 0:02:16]} 20. Bg2 {[%clk 0:02:13]}  Ne2+ {[%clk 0:02:16]} 21. Kf1 {[%clk 0:02:14]}  Nc3 {[%clk 0:02:16]} 22. Be3 {[%clk 0:02:05]}  Nxb1 {[%clk 0:02:15]} 23. Rxb1 {[%clk 0:02:06]}  Rc2 {[%clk 0:02:14]} 24. a4 {[%clk 0:02:05]}  Rb2 {[%clk 0:02:14]} 25. Rd1 {[%clk 0:02:02]}  Rxb3 {[%clk 0:02:14]} 26. Rd7 {[%clk 0:02:00]}  a5 {[%clk 0:02:09]} 27. Rxe7 {[%clk 0:02:00]}  Rb4 {[%clk 0:02:05]} 28. Bc6 {[%clk 0:01:58]}  Bd4 {[%clk 0:02:05]} 29. Bh6 {[%clk 0:01:56]}  Rc8 {[%clk 0:02:00]} 30. Bd5 {[%clk 0:01:54]}  Rd8 {[%clk 0:01:00]} 31. Rxf7 {[%clk 0:01:50]}  Kh8 {[%clk 0:01:00]} 32. Bc6 {[%clk 0:01:32]}  Rb2 {[%clk 0:00:50]} 33. h4 {[%clk 0:01:29]}  Kg8 {[%clk 0:00:38]} 34. Bd5 {[%clk 0:01:19]}  Kh8 {[%clk 0:00:39]} 35. Bc6 {[%clk 0:01:01]}  Rc2 {[%clk 0:00:34]} 36. Be4 {[%clk 0:00:59]}  Rc5 {[%clk 0:00:22]} 37. g4 {[%clk 0:00:51]}  Kg8 {[%clk 0:00:21]} 38. Rb7 {[%clk 0:00:45]}  Re8 {[%clk 0:00:20]} 39. f3 {[%clk 0:00:39]}  Rc4 {[%clk 0:00:13]} 40. Bd5+ {[%clk 0:00:39]}  Kh8 {[%clk 0:00:11]} 41. Bxc4 {[%clk 0:00:39]} 1-0


[Site "https://www.chess.com"]

[Event "Titled Tuesday Blitz December 20 Early 2022"]
[White "Michelin, Badi"]
[Black "IamSchrodingersCat"]
[WhiteFideId "26032708"]
[WhiteElo "1762"]
[BlackElo "2591"]
[Result "1-0"]
[Round "01"]
[TimeControl "180+2"]
[Date "2022.12.20"]
[WhiteClock "0:01:11"]
[BlackClock "0:00:19"]

1. Nf3 {[%clk 0:02:53]}  Nf6 {[%clk 0:02:58]} 2. c4 {[%clk 0:02:52]}  g6 {[%clk 0:02:58]} 3. Nc3 {[%clk 0:02:51]}  Bg7 {[%clk 0:02:58]} 4. d4 {[%clk 0:02:50]}  O-O {[%clk 0:02:57]} 5. e3 {[%clk 0:02:51]}  d6 {[%clk 0:02:57]} 6. Be2 {[%clk 0:02:50]}  Nbd7 {[%clk 0:02:57]} 7. O-O {[%clk 0:02:49]}  e5 {[%clk 0:02:57]} 8. Qc2 {[%clk 0:02:46]}  Re8 {[%clk 0:02:56]} 9. Rd1 {[%clk 0:02:45]}  e4 {[%clk 0:02:56]} 10. Nd2 {[%clk 0:02:45]}  Qe7 {[%clk 0:02:56]} 11. b4 {[%clk 0:02:39]}  Nf8 {[%clk 0:02:55]} 12. Bb2 {[%clk 0:02:39]}  Bf5 {[%clk 0:02:53]} 13. Rac1 {[%clk 0:02:39]}  c6 {[%clk 0:02:53]} 14. Nb3 {[%clk 0:02:38]}  h5 {[%clk 0:02:52]} 15. d5 {[%clk 0:02:37]}  N8h7 {[%clk 0:02:46]} 16. Nd4 {[%clk 0:02:36]}  Bd7 {[%clk 0:02:27]} 17. dxc6 {[%clk 0:02:30]}  bxc6 {[%clk 0:02:28]} 18. b5 {[%clk 0:02:29]}  c5 {[%clk 0:02:11]} 19. Nc6 {[%clk 0:02:24]}  Bxc6 {[%clk 0:01:46]} 20. bxc6 {[%clk 0:02:25]}  Rac8 {[%clk 0:01:34]} 21. Nd5 {[%clk 0:02:21]}  Qe6 {[%clk 0:01:33]} 22. Qa4 {[%clk 0:02:12]}  Qf5 {[%clk 0:01:10]} 23. Bxf6 {[%clk 0:01:53]}  Nxf6 {[%clk 0:01:07]} 24. Qxa7 {[%clk 0:01:45]}  Qg5 {[%clk 0:00:58]} 25. Ne7+ {[%clk 0:01:42]}  Rxe7 {[%clk 0:00:54]} 26. Qxe7 {[%clk 0:01:41]}  Rxc6 {[%clk 0:00:47]} 27. Rxd6 {[%clk 0:01:31]}  Rxd6 {[%clk 0:00:41]} 28. Qxd6 {[%clk 0:01:31]}  h4 {[%clk 0:00:37]} 29. h3 {[%clk 0:01:26]}  Qf5 {[%clk 0:00:29]} 30. a4 {[%clk 0:01:22]}  Nd7 {[%clk 0:00:19]} 31. Bg4 {[%clk 0:01:11]} 1-0


[Site "https://www.chess.com"]

[Event "Titled Tuesday Blitz December 20 Early 2022"]
[White "Michels, Achim"]
[Black "Arnaldofdelavaramulet"]
[WhiteFideId "4677889"]
[WhiteElo "2163"]
[BlackElo "2648"]
[Result "0-1"]
[Round "01"]
[TimeControl "180+2"]
[Date "2022.12.20"]
[WhiteClock "0:00:03"]
[BlackClock "0:00:14"]

1. e4 {[%clk 0:02:55]}  c5 {[%clk 0:03:00]} 2. Nf3 {[%clk 0:02:55]}  e6 {[%clk 0:03:01]} 3. d4 {[%clk 0:02:55]}  cxd4 {[%clk 0:03:02]} 4. Nxd4 {[%clk 0:02:56]}  a6 {[%clk 0:03:03]} 5. Nc3 {[%clk 0:02:54]}  Qc7 {[%clk 0:03:03]} 6. f4 {[%clk 0:02:53]}  d6 {[%clk 0:03:01]} 7. Be2 {[%clk 0:02:52]}  Nf6 {[%clk 0:03:01]} 8. Be3 {[%clk 0:02:51]}  Nbd7 {[%clk 0:03:02]} 9. O-O {[%clk 0:02:50]}  b5 {[%clk 0:03:02]} 10. Bf3 {[%clk 0:02:46]}  Bb7 {[%clk 0:03:02]} 11. a3 {[%clk 0:02:46]}  Nc5 {[%clk 0:03:01]} 12. e5 {[%clk 0:02:08]}  dxe5 {[%clk 0:03:02]} 13. fxe5 {[%clk 0:02:08]}  Qxe5 {[%clk 0:03:01]} 14. Bf4 {[%clk 0:01:48]}  Bxf3 {[%clk 0:02:57]} 15. Rxf3 {[%clk 0:01:15]}  Qh5 {[%clk 0:02:56]} 16. Nc6 {[%clk 0:01:13]}  Rc8 {[%clk 0:02:30]} 17. Ne5 {[%clk 0:00:18]}  Be7 {[%clk 0:01:29]} 18. h3 {[%clk 0:00:08]}  g5 {[%clk 0:01:09]} 19. g4 {[%clk 0:00:05]}  Qh6 {[%clk 0:01:05]} 20. Be3 {[%clk 0:00:05]}  Qg7 {[%clk 0:00:57]} 21. Qd4 {[%clk 0:00:05]}  O-O {[%clk 0:00:47]} 22. Raf1 {[%clk 0:00:03]}  Rcd8 {[%clk 0:00:27]} 23. Qb4 {[%clk 0:00:03]}  Nd5 {[%clk 0:00:28]} 24. Nxd5 {[%clk 0:00:02]}  Rxd5 {[%clk 0:00:28]} 25. Nc6 {[%clk 0:00:01]}  Bd6 {[%clk 0:00:24]} 26. c4 {[%clk 0:00:02]}  bxc4 {[%clk 0:00:23]} 27. Qxc4 {[%clk 0:00:02]}  Qxb2 {[%clk 0:00:17]} 28. R3f2 {[%clk 0:00:03]}  Qb5 {[%clk 0:00:14]} 0-1


[Site "https://www.chess.com"]

[Event "Titled Tuesday Blitz December 20 Early 2022"]
[White "Mileo, Miguelito"]
[Black "Betta, Yanis"]
[WhiteFideId "851108"]
[BlackFideId "36032972"]
[WhiteElo "1721"]
[BlackElo "2452"]
[Result "1/2-1/2"]
[Round "01"]
[TimeControl "180+2"]
[Date "2022.12.20"]
[WhiteClock "0:00:30"]
[BlackClock "0:01:29"]

1. e4 {[%clk 0:03:00]}  e5 {[%clk 0:02:53]} 2. Nf3 {[%clk 0:03:00]}  Nf6 {[%clk 0:02:52]} 3. Nxe5 {[%clk 0:03:00]}  Nxe4 {[%clk 0:02:53]} 4. Qe2 {[%clk 0:03:00]}  Qe7 {[%clk 0:02:53]} 5. Qxe4 {[%clk 0:02:59]}  d6 {[%clk 0:02:54]} 6. d4 {[%clk 0:03:00]}  dxe5 {[%clk 0:02:54]} 7. dxe5 {[%clk 0:03:00]}  Nc6 {[%clk 0:02:55]} 8. Nc3 {[%clk 0:02:48]}  Qxe5 {[%clk 0:02:54]} 9. Qxe5+ {[%clk 0:02:44]}  Nxe5 {[%clk 0:02:55]} 10. Bf4 {[%clk 0:02:44]}  Bd6 {[%clk 0:02:55]} 11. Bg3 {[%clk 0:02:34]}  Be6 {[%clk 0:02:54]} 12. Nb5 {[%clk 0:02:32]}  O-O-O {[%clk 0:02:54]} 13. Nxd6+ {[%clk 0:02:32]}  cxd6 {[%clk 0:02:55]} 14. O-O-O {[%clk 0:02:31]}  Rhe8 {[%clk 0:02:54]} 15. Bb5 {[%clk 0:02:26]}  Re7 {[%clk 0:02:53]} 16. Rd2 {[%clk 0:02:24]}  f6 {[%clk 0:02:51]} 17. Rhd1 {[%clk 0:02:23]}  a6 {[%clk 0:02:50]} 18. Bf1 {[%clk 0:02:21]}  d5 {[%clk 0:02:46]} 19. f3 {[%clk 0:02:18]}  Nc6 {[%clk 0:02:45]} 20. c3 {[%clk 0:02:09]}  d4 {[%clk 0:02:39]} 21. cxd4 {[%clk 0:02:07]}  Bxa2 {[%clk 0:02:40]} 22. d5 {[%clk 0:02:04]}  Ne5 {[%clk 0:02:39]} 23. d6 {[%clk 0:01:57]}  Red7 {[%clk 0:02:28]} 24. Kc2 {[%clk 0:01:24]}  Bf7 {[%clk 0:02:19]} 25. b3 {[%clk 0:01:20]}  Bg6+ {[%clk 0:02:17]} 26. Kb2 {[%clk 0:01:20]}  Kb8 {[%clk 0:02:17]} 27. Bc4 {[%clk 0:01:13]}  Nxc4+ {[%clk 0:02:13]} 28. bxc4 {[%clk 0:01:13]}  Rc8 {[%clk 0:02:14]} 29. Rd4 {[%clk 0:01:10]}  Bf7 {[%clk 0:02:14]} 30. Rc1 {[%clk 0:01:10]}  Rc5 {[%clk 0:02:11]} 31. Rc3 {[%clk 0:01:02]}  b5 {[%clk 0:02:10]} 32. cxb5 {[%clk 0:01:02]}  Rxb5+ {[%clk 0:02:11]} 33. Kc2 {[%clk 0:01:02]}  Bg6+ {[%clk 0:02:09]} 34. Kd2 {[%clk 0:01:00]}  Kb7 {[%clk 0:02:02]} 35. Rc7+ {[%clk 0:00:58]}  Rxc7 {[%clk 0:02:02]} 36. dxc7 {[%clk 0:00:59]}  Rc5 {[%clk 0:02:02]} 37. Rb4+ {[%clk 0:00:56]}  Rb5 {[%clk 0:01:53]} 38. Rc4 {[%clk 0:00:51]}  Kc8 {[%clk 0:01:51]} 39. Rd4 {[%clk 0:00:51]}  Rb2+ {[%clk 0:01:26]} 40. Ke3 {[%clk 0:00:32]}  Rb3+ {[%clk 0:01:26]} 41. Ke2 {[%clk 0:00:31]}  Rb2+ {[%clk 0:01:27]} 42. Kd1 {[%clk 0:00:31]}  Rb1+ {[%clk 0:01:27]} 43. Kd2 {[%clk 0:00:30]}  Rb2+ {[%clk 0:01:28]} 44. Kc1 {[%clk 0:00:31]}  Rb1+ {[%clk 0:01:28]} 45. Kd2 {[%clk 0:00:30]}  Rb2+ {[%clk 0:01:29]} 1/2-1/2


[Site "https://www.chess.com"]

[Event "Titled Tuesday Blitz December 20 Early 2022"]
[White "Mohammed, Dilshad"]
[Black "severomorskij"]
[WhiteFideId "5050421"]
[WhiteElo "2103"]
[BlackElo "2844"]
[Result "0-1"]
[Round "01"]
[TimeControl "180+2"]
[Date "2022.12.20"]
[WhiteClock "0:00:56"]
[BlackClock "0:01:02"]

1. Nf3 {[%clk 0:02:21]}  d5 {[%clk 0:02:56]} 2. c4 {[%clk 0:02:21]}  d4 {[%clk 0:02:56]} 3. e3 {[%clk 0:02:21]}  c5 {[%clk 0:02:56]} 4. b4 {[%clk 0:02:21]}  dxe3 {[%clk 0:02:53]} 5. fxe3 {[%clk 0:02:22]}  cxb4 {[%clk 0:02:54]} 6. d4 {[%clk 0:02:22]}  g6 {[%clk 0:02:54]} 7. Bd3 {[%clk 0:02:22]}  Bg7 {[%clk 0:02:54]} 8. O-O {[%clk 0:02:23]}  Nf6 {[%clk 0:02:53]} 9. Bb2 {[%clk 0:02:23]}  O-O {[%clk 0:02:52]} 10. h3 {[%clk 0:02:24]}  a5 {[%clk 0:02:52]} 11. a4 {[%clk 0:02:19]}  Nfd7 {[%clk 0:02:41]} 12. Qe2 {[%clk 0:02:15]}  e5 {[%clk 0:02:37]} 13. dxe5 {[%clk 0:02:13]}  Nc6 {[%clk 0:02:29]} 14. Rd1 {[%clk 0:02:11]}  Qe7 {[%clk 0:02:26]} 15. Nbd2 {[%clk 0:02:01]}  Ndxe5 {[%clk 0:02:24]} 16. Nxe5 {[%clk 0:02:01]}  Nxe5 {[%clk 0:02:25]} 17. Bxe5 {[%clk 0:01:55]}  Bxe5 {[%clk 0:02:21]} 18. Rab1 {[%clk 0:01:55]}  Bd7 {[%clk 0:02:13]} 19. Bc2 {[%clk 0:01:51]}  Rad8 {[%clk 0:02:09]} 20. Nf3 {[%clk 0:01:50]}  Bg7 {[%clk 0:02:04]} 21. Rd5 {[%clk 0:01:43]}  b6 {[%clk 0:01:58]} 22. Rbd1 {[%clk 0:01:37]}  Bc6 {[%clk 0:01:57]} 23. e4 {[%clk 0:01:31]}  Bxd5 {[%clk 0:01:51]} 24. cxd5 {[%clk 0:01:32]}  Rfe8 {[%clk 0:01:45]} 25. Qb5 {[%clk 0:01:27]}  Qc5+ {[%clk 0:01:39]} 26. Qxc5 {[%clk 0:01:16]}  bxc5 {[%clk 0:01:39]} 27. Bd3 {[%clk 0:01:12]}  c4 {[%clk 0:01:39]} 28. Bxc4 {[%clk 0:01:10]}  Rxe4 {[%clk 0:01:38]} 29. Bb5 {[%clk 0:01:10]}  b3 {[%clk 0:01:32]} 30. d6 {[%clk 0:01:10]}  b2 {[%clk 0:01:26]} 31. d7 {[%clk 0:01:10]}  Rb4 {[%clk 0:01:23]} 32. Rb1 {[%clk 0:01:05]}  Rxb5 {[%clk 0:01:16]} 33. axb5 {[%clk 0:01:06]}  Rxd7 {[%clk 0:01:16]} 34. Ne1 {[%clk 0:01:02]}  Rb7 {[%clk 0:01:11]} 35. Nc2 {[%clk 0:01:01]}  Rxb5 {[%clk 0:01:10]} 36. Kf2 {[%clk 0:01:01]}  Rc5 {[%clk 0:01:05]} 37. Na3 {[%clk 0:00:58]}  Rc1 {[%clk 0:01:04]} 38. Ke2 {[%clk 0:00:58]}  Bf8 {[%clk 0:01:03]} 39. Rxb2 {[%clk 0:00:58]}  Bxa3 {[%clk 0:01:03]} 40. Rb8+ {[%clk 0:00:56]}  Kg7 {[%clk 0:01:02]} 0-1


[Site "https://www.chess.com"]

[Event "Titled Tuesday Blitz December 20 Early 2022"]
[White "Mone, Ved"]
[Black "Pastana, Rafael Pedroni"]
[WhiteFideId "25666290"]
[BlackFideId "2140756"]
[WhiteElo "1254"]
[BlackElo "1978"]
[Result "1-0"]
[Round "01"]
[TimeControl "180+2"]
[Date "2022.12.20"]
[WhiteClock "0:00:14"]
[BlackClock "0:00:22"]

1. e4 {[%clk 0:02:59]}  c5 {[%clk 0:02:55]} 2. Nf3 {[%clk 0:02:58]}  e6 {[%clk 0:02:54]} 3. d4 {[%clk 0:02:58]}  cxd4 {[%clk 0:02:55]} 4. Nxd4 {[%clk 0:02:59]}  a6 {[%clk 0:02:54]} 5. Bd3 {[%clk 0:02:58]}  Qc7 {[%clk 0:02:52]} 6. Nc3 {[%clk 0:02:54]}  Nf6 {[%clk 0:02:48]} 7. O-O {[%clk 0:02:47]}  Be7 {[%clk 0:02:45]} 8. a4 {[%clk 0:02:38]}  O-O {[%clk 0:02:44]} 9. Kh1 {[%clk 0:02:28]}  d6 {[%clk 0:02:44]} 10. f4 {[%clk 0:02:27]}  b6 {[%clk 0:02:43]} 11. Qe1 {[%clk 0:02:22]}  Bb7 {[%clk 0:02:40]} 12. e5 {[%clk 0:02:19]}  dxe5 {[%clk 0:02:38]} 13. fxe5 {[%clk 0:02:20]}  Nd5 {[%clk 0:02:37]} 14. Nxd5 {[%clk 0:01:55]}  Bxd5 {[%clk 0:02:38]} 15. Qg3 {[%clk 0:01:51]}  Rd8 {[%clk 0:02:16]} 16. c3 {[%clk 0:01:47]}  Nc6 {[%clk 0:02:15]} 17. Nxc6 {[%clk 0:01:45]}  Qxc6 {[%clk 0:02:16]} 18. Bc2 {[%clk 0:01:11]}  Be4 {[%clk 0:01:57]} 19. Bxe4 {[%clk 0:01:03]}  Qxe4 {[%clk 0:01:58]} 20. Be3 {[%clk 0:01:03]}  b5 {[%clk 0:01:56]} 21. Bd4 {[%clk 0:00:58]}  b4 {[%clk 0:01:45]} 22. Rf4 {[%clk 0:00:58]}  Qc2 {[%clk 0:01:40]} 23. Rf2 {[%clk 0:00:57]}  Qe4 {[%clk 0:01:39]} 24. Raf1 {[%clk 0:00:56]}  Rf8 {[%clk 0:01:34]} 25. Rf4 {[%clk 0:00:54]}  Qc2 {[%clk 0:01:32]} 26. h4 {[%clk 0:00:44]}  bxc3 {[%clk 0:01:30]} 27. bxc3 {[%clk 0:00:43]}  Rab8 {[%clk 0:01:30]} 28. Kh2 {[%clk 0:00:38]}  Rb2 {[%clk 0:01:13]} 29. h5 {[%clk 0:00:32]}  h6 {[%clk 0:01:05]} 30. R4f2 {[%clk 0:00:20]}  Qb3 {[%clk 0:01:04]} 31. Rf3 {[%clk 0:00:20]}  Qxa4 {[%clk 0:00:55]} 32. Qg4 {[%clk 0:00:15]}  Qc2 {[%clk 0:00:49]} 33. Rf6 {[%clk 0:00:12]}  Qxg2+ {[%clk 0:00:30]} 34. Qxg2 {[%clk 0:00:12]}  Rxg2+ {[%clk 0:00:31]} 35. Kxg2 {[%clk 0:00:12]}  gxf6 {[%clk 0:00:31]} 36. exf6 {[%clk 0:00:13]}  Bd6 {[%clk 0:00:32]} 37. Kf3 {[%clk 0:00:13]}  Ra8 {[%clk 0:00:30]} 38. Rg1+ {[%clk 0:00:14]}  Kf8 {[%clk 0:00:23]} 39. Be3 {[%clk 0:00:14]}  a5 {[%clk 0:00:22]} 40. Bxh6+ {[%clk 0:00:14]}  Ke8 {[%clk 0:00:22]} 41. Rg8+ {[%clk 0:00:14]} 1-0


[Site "https://www.chess.com"]